fUST/lending_fUST_20250212
["ID","MTS","AMOUNT","RATE_DAILY","PERIOD"]
[352850304,1739369440351,-500.0,0.00011232,2]
[352850306,1739369440360,-500.0,0.00011232,2]
[352850307,1739369440370,-500.0,0.00011232,2]
[352850309,1739369440379,-500.0,0.00011232,2]
[352850311,1739369440388,-500.0,0.00011232,2]
[352850312,1739369440398,-500.0,0.00011232,2]
[352850313,1739369440411,-500.0,0.00011232,2]
[352850315,1739369440420,-500.0,0.00011232,2]
[352850317,1739369440430,-1206.04,0.00011232,2]
[352850319,1739369440439,-500.0,0.00011232,2]
[352850320,1739369440448,-500.0,0.00011232,2]
[352850322,1739369440457,-500.0,0.00011232,2]
[352850323,1739369440466,-500.0,0.000113,2]
[352850324,1739369440476,-507.88802541,0.00011317,2]
[352850325,1739369440486,-516.71114806,0.00011317,2]
[352850326,1739369440495,-500.0,0.00011317,2]
[352850327,1739369440506,-500.0,0.00011368,2]
[352850328,1739369440516,-500.0,0.00011368,2]
[352850329,1739369440525,-500.0,0.00011368,2]
[352850330,1739369440534,-500.0,0.00011368,2]
[352850331,1739369440543,-500.0,0.00011368,2]
[352850332,1739369440552,-500.0,0.00011368,2]
[352850333,1739369440562,-500.0,0.00011368,2]
[352850334,1739369440571,-500.0,0.00011368,2]
[352850335,1739369440580,-500.0,0.00011368,2]
[352850336,1739369440589,-500.0,0.00011368,2]
[352850337,1739369440600,-500.0,0.00011369,2]
[352850338,1739369440610,-500.0,0.00011369,2]
[352850339,1739369440620,-500.0,0.00011369,2]
[352850340,1739369440630,-500.0,0.00011369,2]
[352850341,1739369440642,-500.0,0.00011369,2]
[352850342,1739369440653,-500.0,0.00011369,2]
[352850343,1739369440662,-500.0,0.00011369,2]
[352850344,1739369440671,-500.0,0.00011369,2]
[352850345,1739369440680,-500.0,0.00011369,2]
[352850346,1739369440689,-500.0,0.00011369,2]
[352850347,1739369440698,-500.0,0.00011369,2]
[352850348,1739369440707,-500.0,0.00011369,2]
[352850349,1739369440725,-626.11,0.00011369,2]
[352850350,1739369440735,-500.0,0.00011369,2]
[352850351,1739369440744,-500.0,0.00011369,2]
[352850352,1739369440754,-500.0,0.00011369,2]
[352850353,1739369440764,-500.0,0.00011369,2]
[352850354,1739369440774,-1061.19,0.00011369,2]
[352850355,1739369440783,-500.0,0.00011369,2]
[352850356,1739369440793,-500.0,0.00011369,2]
[352850357,1739369440802,-500.0,0.00011369,2]
[352850358,1739369440812,-500.0,0.00011369,2]
[352850359,1739369440821,-500.0,0.00011369,2]
[352850360,1739369440830,-1829.41,0.00011369,2]
[352850361,1739369440840,-500.0,0.00011369,2]
[352850362,1739369440849,-500.0,0.00011369,2]
[352850363,1739369440858,-500.0,0.00011369,2]
[352850364,1739369440868,-500.0,0.00011369,2]
[352850365,1739369440877,-500.0,0.00011369,2]
[352850366,1739369440887,-500.0,0.00011369,2]
[352850367,1739369440896,-500.0,0.00011369,2]
[352850368,1739369440910,-500.0,0.00011369,2]
[352850369,1739369440920,-500.0,0.00011369,2]
[352850370,1739369440929,-500.0,0.00011369,2]
[352850371,1739369440938,-500.0,0.00011369,2]
[352850372,1739369440948,-500.0,0.00011369,2]
[352850373,1739369440958,-500.0,0.00011369,2]
[352850374,1739369440967,-500.0,0.00011369,2]
[352850375,1739369440976,-500.0,0.00011369,2]
[352850376,1739369440985,-500.0,0.00011369,2]
[352850377,1739369440994,-500.0,0.00011369,2]
[352850378,1739369441005,-500.0,0.00011369,2]
[352850379,1739369441014,-500.0,0.00011369,2]
[352850380,1739369441023,-1206.04,0.00011369,2]
[352850381,1739369441032,-500.0,0.00011369,2]
[352850382,1739369441041,-500.0,0.00011369,2]
[352850383,1739369441051,-500.0,0.00011369,2]
[352850384,1739369441060,-500.0,0.00011383,2]
[352850385,1739369441069,-500.0,0.00011393,2]
[352850386,1739369441078,-500.0,0.00011505,2]
[352850387,1739369441087,-500.0,0.00011505,2]
[352850388,1739369441096,-500.0,0.00011505,2]
[352850389,1739369441105,-500.0,0.00011506,2]
[352850390,1739369441115,-500.0,0.00011506,2]
[352850391,1739369441124,-500.0,0.00011506,2]
[352850392,1739369441133,-500.0,0.00011506,2]
[352850393,1739369441143,-500.0,0.00011506,2]
[352850394,1739369441154,-500.0,0.00011506,2]
[352850395,1739369441163,-500.0,0.00011506,2]
[352850396,1739369441172,-500.0,0.00011506,2]
[352850397,1739369441182,-500.0,0.00011506,2]
[352850398,1739369441193,-500.0,0.00011506,2]
[352850399,1739369441202,-649.33,0.00011506,2]
[352850400,1739369441212,-500.0,0.00011506,2]
[352850401,1739369441221,-500.0,0.00011506,2]
[352850402,1739369441231,-500.0,0.00011506,2]
[352850403,1739369441241,-500.0,0.00011506,2]
[352850404,1739369441251,-1061.19,0.00011506,2]
[352850405,1739369441260,-500.0,0.00011506,2]
[352850406,1739369441270,-500.0,0.00011506,2]
[352850407,1739369441279,-321.30266353,0.00011506,2]
[352850408,1739369441290,-1829.41,0.00011506,2]
[352850409,1739369441300,-500.0,0.00011506,2]
[352850410,1739369441309,-500.0,0.00011506,2]
[352850411,1739369441319,-500.0,0.00011506,2]
[352850412,1739369441328,-500.0,0.00011506,2]
[352850413,1739369441338,-500.0,0.00011506,2]
[352850414,1739369441347,-500.0,0.00011506,2]
[352850415,1739369441357,-500.0,0.00011506,2]
[352850416,1739369441367,-500.0,0.00011506,2]
[352850417,1739369441377,-643.76810586,0.00011506,2]
[352850418,1739369441387,-500.0,0.00011506,2]
[352850419,1739369441396,-500.0,0.00011506,2]
[352850420,1739369441409,-500.0,0.00011506,2]
[352850421,1739369441419,-500.0,0.00011506,2]
[352850422,1739369441429,-500.0,0.00011506,2]
[352850423,1739369441439,-500.0,0.00011506,2]
[352850424,1739369441448,-500.0,0.00011506,2]
[352850425,1739369441458,-500.0,0.00011506,2]
[352850426,1739369441467,-500.0,0.00011506,2]
[352850427,1739369441478,-1206.04,0.00011506,2]
[352850428,1739369441487,-500.0,0.00011506,2]
[352850429,1739369441497,-500.0,0.00011506,2]
[352850430,1739369441506,-500.0,0.00011506,2]
[352850431,1739369441516,-500.0,0.00011642,2]
[352850432,1739369441526,-500.0,0.00011642,2]
[352850433,1739369441535,-500.0,0.00011642,2]
[352850434,1739369441545,-500.0,0.00011643,2]
[352850435,1739369441554,-500.0,0.00011643,2]
[352850436,1739369441563,-500.0,0.00011643,2]
[352850437,1739369441575,-500.0,0.00011643,2]
[352850438,1739369441585,-500.0,0.00011643,2]
[352850439,1739369441594,-500.0,0.00011643,2]
[352850440,1739369441605,-500.0,0.00011643,2]
[352850441,1739369441614,-205.42,0.00011643,2]
[352850442,1739369441623,-580.9,0.00011643,2]
[352850443,1739369441633,-500.0,0.00011643,2]
[352850444,1739369441642,-500.0,0.00011643,2]
[352850445,1739369441653,-461.78998805,0.00011643,2]
[352850446,1739369441663,-500.0,0.00011643,2]
[352850447,1739369441672,-1061.19,0.00011643,2]
[352850448,1739369441682,-500.0,0.00011643,2]
[352850449,1739369441692,-500.0,0.00011643,2]
[352850450,1739369441701,-1829.41,0.00011643,2]
[352850451,1739369441711,-252.6,0.00011643,2]
[352850452,1739369441720,-500.0,0.00011643,2]
[352850453,1739369441733,-500.0,0.00011643,2]
[352850454,1739369441743,-500.0,0.00011643,2]
[352850455,1739369441752,-500.0,0.00011643,2]
[352850456,1739369441762,-500.0,0.00011643,2]
[352850457,1739369441771,-500.0,0.00011643,2]
[352850458,1739369441781,-500.0,0.00011643,2]
[352850459,1739369441790,-508.65,0.00011643,2]
[352850460,1739369441800,-500.0,0.00011643,2]
[352850461,1739369441812,-500.0,0.00011643,2]
[352850462,1739369441822,-500.0,0.00011643,2]
[352850463,1739369441831,-500.0,0.00011643,2]
[352850464,1739369441841,-500.0,0.00011643,2]
[352850465,1739369441850,-1206.04,0.00011643,2]
[352850466,1739369441860,-641.99,0.00011643,2]
[352850467,1739369441871,-500.0,0.00011643,2]
[352850468,1739369441881,-500.0,0.00011779,2]
[352850469,1739369441891,-500.0,0.00011779,2]
[352850470,1739369441901,-500.0,0.00011779,2]
[352850471,1739369441915,-362.30839503,0.00011779,2]
[352850472,1739369441924,-500.0,0.0001178,2]
[352850473,1739369441934,-500.0,0.0001178,2]
[352850474,1739369441944,-614.9,0.0001178,2]
[352850475,1739369441953,-500.0,0.0001178,2]
[352850476,1739369441963,-500.0,0.0001178,2]
[352850477,1739369441973,-500.0,0.0001178,2]
[352850478,1739369441982,-500.0,0.0001178,2]
[352850479,1739369441992,-1061.19,0.0001178,2]
[352850480,1739369442002,-576.84,0.0001178,2]
[352850481,1739369442123,-500.0,0.0001178,2]
[352850482,1739369442133,-1829.41,0.0001178,2]
[352850483,1739369442143,-500.0,0.0001178,2]
[352850484,1739369442158,-500.0,0.0001178,2]
[352850485,1739369442169,-500.0,0.0001178,2]
[352850486,1739369442178,-500.0,0.0001178,2]
[352850487,1739369442189,-500.0,0.0001178,2]
[352850488,1739369442199,-500.0,0.0001178,2]
[352850489,1739369442208,-500.0,0.0001178,2]
[352850490,1739369442218,-500.0,0.0001178,2]
[352850491,1739369442228,-500.0,0.0001178,2]
[352850492,1739369442238,-500.0,0.0001178,2]
[352850493,1739369442248,-1206.04,0.0001178,2]
[352850494,1739369442257,-474.3,0.0001178,2]
[352850495,1739369442267,-420.0,0.00011796,2]
[352850496,1739369442276,-500.0,0.00011916,2]
[352850497,1739369442286,-500.0,0.00011916,2]
[352850498,1739369442296,-390.34379564,0.00011916,2]
[352850499,1739369442305,-567.61619045,0.00011917,2]
[352850500,1739369442315,-500.0,0.00011917,2]
[352850501,1739369442324,-426.76468091,0.00011917,2]
[352850502,1739369442336,-500.0,0.00011917,2]
[352850503,1739369442346,-1061.19,0.00011917,2]
[352850504,1739369442356,-500.0,0.00011917,2]
[352850505,1739369442366,-1829.41,0.00011917,2]
[352850507,1739369442376,-500.0,0.00011917,2]
[352850510,1739369442386,-500.0,0.00011917,2]
[352850512,1739369442395,-613.56,0.00011917,2]
[352850513,1739369442407,-500.0,0.00011917,2]
[352850514,1739369442416,-500.0,0.00011917,2]
[352850515,1739369442426,-500.0,0.00011917,2]
[352850516,1739369442435,-580.4,0.00011917,2]
[352850517,1739369442444,-545.62559826,0.00011917,2]
[352850518,1739369442454,-16.32923872,0.00011917,2]
[352850523,1739369442540,-496.92076128,0.00011917,2]
[352850525,1739369442550,-881.52852342,0.00011917,2]
[352850528,1739369442562,-324.51147658,0.00011917,2]
[352850530,1739369442571,-500.6237296,0.00011941,2]
[352850532,1739369442580,-79.84603774,0.00012053,2]
[352850536,1739369442592,-420.15396226,0.00012053,2]
[352850540,1739369442602,-30.98470974,0.00012053,2]
[352850544,1739369442614,-469.01529026,0.00012053,2]
[352850547,1739369442623,-500.0,0.00012054,2]
[352850550,1739369442633,-109.09266474,0.00012054,2]
[352850554,1739369442644,-382.22733526,0.00012054,2]
[352850558,1739369442657,-1061.19,0.00012054,2]
[352850560,1739369442667,-500.0,0.00012054,2]
[352850564,1739369442677,-1829.41,0.00012054,2]
[352850567,1739369442687,-235.75,0.00012054,2]
[352850569,1739369442696,-500.0,0.00012054,2]
[352850572,1739369442706,-500.0,0.00012054,2]
[352850575,1739369442719,-500.0,0.00012054,2]
[352850578,1739369442729,-500.0,0.00012054,2]
[352850581,1739369442739,-1206.04,0.00012054,2]
[352850583,1739369442748,-500.0,0.0001219,2]
[352850587,1739369442759,-500.0,0.00012191,2]
[352850590,1739369442768,-43.29521329,0.00012191,2]
[352850592,1739369442779,-1017.89478671,0.00012191,2]
[352850593,1739369442790,-500.0,0.00012191,2]
[352850595,1739369442800,-1829.41,0.00012191,2]
[352850597,1739369442810,-353.9,0.00012191,2]
[352850598,1739369442819,-500.0,0.00012191,2]
[352850599,1739369442829,-526.1,0.00012191,2]
[352850600,1739369442838,-500.0,0.00012191,2]
[352850601,1739369442848,-1206.04,0.00012191,2]
[352850602,1739369442858,-500.0,0.00012327,2]
[352850604,1739369442868,-500.0,0.00012328,2]
[352850605,1739369442877,-1061.19,0.00012328,2]
[352850606,1739369442888,-500.0,0.00012328,2]
[352850607,1739369442897,-1829.41,0.00012328,2]
[352850608,1739369442910,-500.0,0.00012328,2]
[352850609,1739369442919,-500.0,0.00012328,2]
[352850611,1739369442928,-1206.04,0.00012328,2]
[352850613,1739369442937,-309.4,0.00012464,2]
[352850615,1739369442946,-500.0,0.00012465,2]
[352850617,1739369442956,-1061.19,0.00012465,2]
[352850618,1739369442965,-500.0,0.00012465,2]
[352850619,1739369442974,-1829.41,0.00012465,2]
[352850621,1739369442983,-500.0,0.00012465,2]
[352850623,1739369442993,-500.0,0.00012465,2]
[352850624,1739369443003,-1206.04,0.00012465,2]
[352850626,1739369443012,-500.0,0.00012602,2]
[352850627,1739369443022,-1061.19,0.00012602,2]
[352850629,1739369443031,-500.0,0.00012602,2]
[352850630,1739369443040,-1829.41,0.00012602,2]
[352850632,1739369443050,-500.0,0.00012602,2]
[352850633,1739369443059,-281.61,0.00012602,2]
[352850634,1739369443069,-1206.04,0.00012602,2]
[352850635,1739369443078,-500.0,0.00012739,2]
[352850636,1739369443088,-1061.19,0.00012739,2]
[352850637,1739369443098,-500.0,0.00012739,2]
[352850638,1739369443108,-1064.43721483,0.00012739,2]
[352850639,1739369443120,-764.97278517,0.00012739,2]
[352850640,1739369443130,-322.2008696,0.00012739,2]
[352850641,1739369443142,-177.7991304,0.00012739,2]
[352850642,1739369443151,-1206.04,0.00012739,2]
[352850643,1739369443165,-255.0,0.00012876,2]
[352850644,1739369443174,-261.76,0.00012876,2]
[352850645,1739369443183,-500.0,0.00012876,2]
[352850647,1739369443192,-1061.19,0.00012876,2]
[352850649,1739369443204,-500.0,0.00012876,2]
[352850651,1739369443214,-1829.41,0.00012876,2]
[352850653,1739369443223,-500.0,0.00012876,2]
[352850655,1739369443233,-1206.04,0.00012876,2]
[352850658,1739369443244,-163.63082306,0.000129,2]
[352850659,1739369443253,-32.58502884,0.00012966,2]
[352850661,1739369443264,-554.41497116,0.00012966,2]
[352850663,1739369443274,-272.03,0.00013013,2]
[352850665,1739369443283,-1061.19,0.00013013,2]
[352850666,1739369443293,-241.38923502,0.00013013,2]
[352850667,1739369443302,-1829.41,0.00013013,2]
[352850668,1739369443311,-500.0,0.00013013,2]
[352850669,1739369443321,-1206.04,0.00013013,2]
[352850670,1739369443330,-600.0,0.0001308,2]
[352850671,1739369443339,-1061.19,0.0001315,2]
[352850672,1739369443349,-1829.41,0.0001315,2]
[352850673,1739369443358,-500.0,0.0001315,2]
[352850674,1739369443368,-1206.04,0.0001315,2]
[352850675,1739369443378,-1061.19,0.00013287,2]
[352850676,1739369443387,-1829.41,0.00013287,2]
[352850677,1739369443396,-500.0,0.00013287,2]
[352850678,1739369443408,-1206.04,0.00013287,2]
[352850679,1739369443419,-1061.19,0.00013424,2]
[352850680,1739369443428,-1829.41,0.00013424,2]
[352850681,1739369443438,-315.05,0.00013424,2]
[352850682,1739369443447,-1206.04,0.00013424,2]
[352850683,1739369443457,-1061.19,0.00013561,2]
[352850684,1739369443466,-1829.41,0.00013561,2]
[352850685,1739369443475,-1206.04,0.00013561,2]
[352850686,1739369443484,-1061.19,0.00013698,2]
[352850687,1739369443493,-1829.41,0.00013698,2]
[352850688,1739369443503,-1206.04,0.00013698,2]
[352850689,1739369443512,-294.514232,0.00013699,2]
[352850690,1739369443522,-502.622664,0.00013699,2]
[352850691,1739369443531,-396.199,0.00013699,2]
[352850692,1739369443541,-1061.19,0.00013835,2]
[352850693,1739369443550,-1829.41,0.00013835,2]
[352850694,1739369443559,-1206.04,0.00013835,2]
[352850695,1739369443568,-1061.19,0.00013972,2]
[352850696,1739369443578,-1829.41,0.00013972,2]
[352850697,1739369443587,-1206.04,0.00013972,2]
[352850698,1739369443596,-396.0,0.00014063,2]
[352850699,1739369443605,-1061.37018978,0.00014109,2]
[352850700,1739369443615,-1829.42000001,0.00014109,2]
[352850701,1739369443624,-1206.06871413,0.00014109,2]
[352850702,1739369443634,-823.0,0.00014252,2]
[352850703,1739369443643,-600.0,0.0001445,2]
[352850704,1739369443652,-9415.00214916,0.000145,2]
[352850705,1739369443667,-14619.00560113,0.000145,2]
[352850706,1739369443721,-163.76,0.00010959,2]
[352850707,1739369443734,-900.03863551,0.000145,2]
[352850708,1739369443748,-10150.46438921,0.000145,2]
[352850709,1739369443760,-264.0253292,0.000145,2]
[352850710,1739369443774,-517.18867557,0.000145,2]
[352850711,1739369443786,-500.01,0.000145,2]
[352850773,1739369446030,-1038.01999998,0.000145,2]
[352850774,1739369446058,-3648.56839932,0.000145,2]
[352850775,1739369446086,-105739.77682092,0.000145,2]
[352850776,1739369446095,-465.86893273,0.00014524,2]
[352850777,1739369446105,-523.43632106,0.0001455,2]
[352850778,1739369446114,-13269.26255483,0.00014563,2]
[352850779,1739369446124,-253.241,0.00014628,2]
[352850780,1739369446133,-523.43632106,0.0001465,2]
[352850781,1739369446143,-279.431,0.00014678,2]
[352850782,1739369446152,-2293.0,0.00014678,2]
[352850783,1739369446164,-523.43632106,0.0001475,2]
[352850784,1739369446173,-174.6228158,0.00014849,2]
[352850785,1739369446182,-523.43632106,0.0001485,2]
[352850786,1739369446192,-3000.0,0.000149,2]
[352850788,1739369446202,-523.43632106,0.0001495,2]
[352850790,1739369446211,-160.0,0.00014983,2]
[352850791,1739369446221,-156.0,0.00014983,2]
[352850792,1739369446230,-156.0,0.00014983,2]
[352850793,1739369446240,-160.0,0.00014983,2]
[352850794,1739369446250,-156.0,0.00014983,2]
[352850795,1739369446259,-160.0,0.00014983,2]
[352850796,1739369446270,-156.0,0.00014983,2]
[352850797,1739369446280,-160.44,0.00014983,2]
[352850798,1739369446289,-160.0,0.00014983,2]
[352850799,1739369446299,-160.0,0.00014983,2]
[352850800,1739369446309,-160.0,0.00014983,2]
[352850801,1739369446318,-160.0,0.00014983,2]
[352850802,1739369446327,-160.0,0.00014983,2]
[352850803,1739369446337,-160.0,0.00014983,2]
[352850804,1739369446346,-166.58,0.00014983,2]
[352850805,1739369446356,-39165.04985533,0.00015,2]
[352850822,1739370438206,-195.1479683,0.00010017,2]
[352850896,1739370636325,-300.0,0.00010017,2]
[352850898,1739370636334,-895.1999999,0.00010018,2]
[352850900,1739370636346,-1690.81084424,0.00010018,2]
[352850902,1739370636358,-22313.98915586,0.00010018,2]
[352850903,1739370636367,-400.0,0.00010685,2]
[352850905,1739370636376,-535.5695643,0.00010717,2]
[352850907,1739370636387,-223.43654321,0.00010858,2]
[352850909,1739370636401,-7438.69753278,0.00010947,2]
[352850911,1739370636411,-350.0,0.00010957,2]
[352850913,1739370636420,-200.35778109,0.00010957,2]
[352850915,1739370636429,-500.0,0.00010957,2]
[352850917,1739370636439,-217.44993648,0.00010957,2]
[352850918,1739370636448,-332.07693254,0.00010957,2]
[352850919,1739370636458,-500.0,0.00010957,2]
[352850920,1739370636467,-500.0,0.00010957,2]
[352850921,1739370636476,-500.0,0.00010957,2]
[352850922,1739370636485,-500.0,0.00010957,2]
[352850923,1739370636495,-500.0,0.00010957,2]
[352850924,1739370636504,-500.0,0.00010957,2]
[352850925,1739370636513,-500.0,0.00010958,2]
[352850926,1739370636527,-500.0,0.00010958,2]
[352850927,1739370636536,-577.03945351,0.00010958,2]
[352850928,1739370636546,-500.0,0.00010958,2]
[352850929,1739370636556,-500.0,0.00010958,2]
[352850930,1739370636565,-503.63709508,0.00010958,2]
[352850931,1739370636575,-552.95322229,0.00010958,2]
[352850932,1739370636585,-500.0,0.00010958,2]
[352850933,1739370636595,-500.0,0.00010958,2]
[352850934,1739370636604,-500.0,0.00010958,2]
[352850935,1739370636613,-460.76973722,0.00010958,2]
[352850936,1739370636623,-579.38244099,0.00010958,2]
[352850937,1739370636631,-500.0,0.00010958,2]
[352850938,1739370636641,-501.08490058,0.00010958,2]
[352850939,1739370636650,-500.95300771,0.00010958,2]
[352850940,1739370636662,-500.0,0.00010958,2]
[352850941,1739370636671,-500.0,0.00010958,2]
[352850942,1739370636681,-500.0,0.00010958,2]
[352850943,1739370636690,-500.0,0.00010958,2]
[352850944,1739370636699,-500.92595492,0.00010958,2]
[352850945,1739370636709,-500.0,0.00010958,2]
[352850946,1739370636719,-500.0,0.00010958,2]
[352850947,1739370636728,-238.91887548,0.00010958,2]
[352850948,1739370636740,-272.32219955,0.00010958,2]
[352850949,1739370636754,-500.0,0.00010958,2]
[352850950,1739370636763,-500.0,0.00010958,2]
[352850951,1739370636773,-500.0,0.00010958,2]
[352850952,1739370636784,-500.0,0.00010958,2]
[352850953,1739370636794,-500.0,0.00010958,2]
[352850954,1739370636804,-501.10419538,0.00010958,2]
[352850955,1739370636813,-500.0,0.00010958,2]
[352850956,1739370636824,-302.24264762,0.00010958,2]
[352850957,1739370636834,-500.0,0.00010958,2]
[352850958,1739370636843,-500.0,0.00010958,2]
[352850959,1739370636853,-500.0,0.00010958,2]
[352850960,1739370636862,-500.0,0.00010958,2]
[352850961,1739370636871,-500.0,0.00010958,2]
[352850962,1739370636881,-453.95044944,0.00010958,2]
[352850963,1739370636891,-502.7028096,0.00010958,2]
[352850964,1739370636900,-505.16806753,0.00010958,2]
[352850965,1739370636910,-500.0,0.00010958,2]
[352850966,1739370636919,-500.0,0.00010958,2]
[352850967,1739370636928,-500.0,0.00010958,2]
[352850968,1739370636937,-513.82727135,0.00010958,2]
[352850969,1739370636947,-500.0,0.00010958,2]
[352850970,1739370636956,-500.0,0.00010958,2]
[352850971,1739370636965,-500.0,0.00010958,2]
[352850972,1739370636975,-610.35115536,0.00010958,2]
[352850973,1739370636984,-500.0,0.00010958,2]
[352850974,1739370636993,-411.53859376,0.00010958,2]
[352850975,1739370637003,-500.0,0.00010958,2]
[352850976,1739370637012,-332.7219792,0.00010958,2]
[352850977,1739370637021,-500.0,0.00010958,2]
[352850978,1739370637033,-500.0,0.00010958,2]
[352850979,1739370637042,-500.0,0.00010958,2]
[352850980,1739370637051,-500.0,0.00010958,2]
[352850981,1739370637061,-501.04806849,0.00010958,2]
[352850982,1739370637070,-500.0,0.00010958,2]
[352850983,1739370637080,-500.0,0.00010958,2]
[352850984,1739370637089,-498.10411139,0.00010958,2]
[352850985,1739370637098,-500.0,0.00010958,2]
[352850986,1739370637107,-500.0,0.00010958,2]
[352850987,1739370637117,-506.39963766,0.00010958,2]
[352850988,1739370637128,-500.0,0.00010958,2]
[352850989,1739370637138,-500.0,0.00010958,2]
[352850990,1739370637147,-500.0,0.00010958,2]
[352850991,1739370637160,-500.0,0.00010958,2]
[352850992,1739370637169,-207.01405791,0.00010958,2]
[352850993,1739370637180,-500.0,0.00010958,2]
[352850994,1739370637189,-501.98753987,0.00010958,2]
[352850995,1739370637198,-500.0,0.00010958,2]
[352850996,1739370637209,-500.0,0.00010958,2]
[352850997,1739370637220,-222.91450135,0.00010958,2]
[352850998,1739370637231,-500.0,0.00010958,2]
[352850999,1739370637242,-500.0,0.00010958,2]
[352851000,1739370637252,-500.0,0.00010958,2]
[352851001,1739370637262,-500.0,0.00010958,2]
[352851002,1739370637272,-500.0,0.00010958,2]
[352851003,1739370637285,-500.0,0.00010958,2]
[352851004,1739370637294,-500.0,0.00010958,2]
[352851005,1739370637304,-500.0,0.00010958,2]
[352851006,1739370637313,-238.67303768,0.00010958,2]
[352851007,1739370637322,-500.0,0.00010958,2]
[352851008,1739370637331,-500.0,0.00010958,2]
[352851009,1739370637341,-500.0,0.00010958,2]
[352851010,1739370637350,-500.0,0.00010958,2]
[352851011,1739370637361,-500.0,0.00010958,2]
[352851012,1739370637372,-192.70721221,0.00010958,2]
[352851013,1739370637382,-500.0,0.00010958,2]
[352851014,1739370637392,-500.0,0.00010958,2]
[352851015,1739370637402,-599.35161429,0.00010958,2]
[352851016,1739370637411,-230.59156975,0.00010958,2]
[352851017,1739370637421,-500.57141468,0.00010958,2]
[352851018,1739370637430,-267.41717989,0.00010958,2]
[352851019,1739370637440,-500.0,0.00010958,2]
[352851020,1739370637449,-500.0,0.00010958,2]
[352851021,1739370637459,-249.45076571,0.00010958,2]
[352851022,1739370637468,-500.0,0.00010958,2]
[352851023,1739370637479,-500.52297676,0.00010958,2]
[352851024,1739370637489,-500.0,0.00010958,2]
[352851025,1739370637499,-500.0,0.00010958,2]
[352851026,1739370637508,-500.0,0.00010958,2]
[352851027,1739370637517,-500.0,0.00010958,2]
[352851028,1739370637530,-500.0,0.00010958,2]
[352851029,1739370637540,-500.0,0.00010958,2]
[352851031,1739370637549,-500.0,0.00010958,2]
[352851033,1739370637559,-500.0,0.00010958,2]
[352851035,1739370637568,-500.0,0.00010958,2]
[352851037,1739370637579,-500.0,0.00010958,2]
[352851038,1739370637588,-615.34648727,0.00010958,2]
[352851039,1739370637596,-500.0,0.00010958,2]
[352851040,1739370637605,-500.0,0.00010958,2]
[352851041,1739370637614,-500.0,0.00010958,2]
[352851042,1739370637623,-500.0,0.00010958,2]
[352851043,1739370637632,-500.0,0.00010958,2]
[352851044,1739370637642,-500.0,0.00010958,2]
[352851045,1739370637651,-500.0,0.00010958,2]
[352851046,1739370637660,-500.0,0.00010958,2]
[352851047,1739370637670,-575.35366207,0.00010958,2]
[352851048,1739370637679,-404.15634449,0.00010958,2]
[352851049,1739370637689,-500.0,0.00010958,2]
[352851050,1739370637698,-500.0,0.00010958,2]
[352851052,1739370637707,-500.0,0.00010958,2]
[352851053,1739370637716,-345.2183157,0.00010958,2]